bitfinex/quotes_ETHUSD_20250115
["timestamp","ask_amount","ask_price","bid_price","bid_amount"]
[1736938367767,3.0,3216.6,3215.9,0.80219237]
[1736938367967,3.0,3216.6,3215.9,0.7711]
[1736938368370,3.0,3216.6,3215.9,0.80219238]
[1736938368582,3.0,3216.6,3215.9,0.80219205]
[1736938368944,3.0,3216.6,3215.9,0.7711]
[1736938369385,4.39467724,3216.6,3215.9,0.7711]
[1736938371167,4.39467724,3216.6,3215.9,3.10951]
[1736938371375,4.39467724,3216.6,3216.0,0.8001]
[1736938372791,4.39093273,3216.6,3216.0,0.8001]
[1736938374550,1.39467724,3216.4,3216.0,0.8001]
[1736938374757,3.10917,3216.3,3216.1,0.175]
[1736938374964,3.0,3216.2,3216.1,0.175]
[1736938376161,4.39467724,3216.2,3216.0,0.8001]
[1736938376367,4.39467724,3216.2,3216.0,0.9751]
[1736938379806,3.0,3216.2,3216.0,0.9751]
[1736938380007,4.39467724,3216.2,3216.0,0.8001]
[1736938380307,4.39467724,3216.2,3216.0,0.175]
[1736938383105,4.39467724,3216.2,3216.0,0.9751]
[1736938383411,1.39467724,3216.2,3216.0,0.9751]
[1736938383704,1.39467724,3216.4,3216.0,0.9751]
[1736938386507,3.0,3216.3,3216.0,0.9751]
[1736938387715,3.0,3216.5,3216.0,0.9751]
[1736938387916,4.50338724,3216.8,3216.0,3.28442]
[1736938388238,4.50338724,3216.8,3216.1,0.8022]
[1736938388582,3.0,3216.7,3216.1,0.8022]
[1736938394632,1.39467724,3216.6,3216.1,0.8022]
[1736938394808,1.39467724,3216.4,3216.1,0.8022]
[1736938395012,4.39467724,3216.4,3216.2,0.175]
[1736938395939,5.22816196,3216.4,3216.2,0.175]
[1736938396143,5.22816196,3216.4,3215.8,0.8022]
[1736938396301,4.39467724,3216.4,3216.2,0.175]
[1736938400611,1.39467724,3216.4,3216.2,0.9772]
[1736938401143,1.39467724,3216.4,3216.2,0.175]
[1736938403836,4.50374724,3216.4,3216.2,0.175]
[1736938405046,3.10927,3216.2,3215.7,0.753]
[1736938405245,0.8214,3216.3,3216.0,0.175]
[1736938405246,1.39467724,3216.1,3216.0,0.175]
[1736938405542,3.0,3215.9,3215.8,0.175]
[1736938405741,4.39467724,3215.9,3215.8,0.175]
[1736938406415,4.39467724,3215.9,3215.5,0.753]
[1736938406611,4.39467724,3215.9,3215.6,0.175]
[1736938409157,4.39467724,3215.9,3215.5,0.753]
[1736938409364,4.39467724,3215.9,3215.7,0.175]
[1736938414567,1.39467724,3216.1,3215.7,0.175]
[1736938414767,7.50403724,3216.1,3215.7,0.175]
[1736938420073,3.0,3215.9,3215.7,0.175]
[1736938422774,4.50423724,3215.9,3215.7,0.175]
[1736938423077,5.32753724,3215.9,3215.7,0.175]
[1736938423574,5.32753724,3215.9,3215.3,0.8039]
[1736938423744,5.32753724,3215.9,3215.6,0.175]
[1736938427290,4.50423724,3215.9,3215.6,0.175]
[1736938427657,4.39467724,3215.9,3215.6,0.175]
[1736938429288,3.0,3215.9,3215.6,0.175]
[1736938432789,3.0,3216.0,3215.6,0.175]
[1736938432977,3.0,3215.8,3215.7,0.175]
[1736938435681,3.0,3215.8,3215.6,0.175]
[1736938437819,3.0,3215.8,3215.3,0.79120334]
[1736938438026,3.0,3215.8,3215.6,0.175]
[1736938447225,3.1097,3215.8,3215.6,0.175]
[1736938449205,3.10974,3215.7,3215.6,0.175]
[1736938449427,3.86574,3215.7,3215.6,0.175]
[1736938456239,8.26041724,3215.7,3215.6,0.175]
[1736938456606,6.10986,3215.6,3215.1,2.60468295]
[1736938456808,6.10986,3215.6,3215.2,0.175]
[1736938458305,1.39467724,3215.5,3215.2,0.175]
[1736938458531,3.11006,3215.4,3215.1,2.60468295]
[1736938458710,3.11006,3215.4,3215.2,0.175]
[1736938459248,1.39467724,3215.5,3215.0,0.7827]
[1736938459424,5.26082724,3215.3,3215.0,0.175]
[1736938459743,1.39467724,3215.1,3214.8,2.60468295]
[1736938459941,3.10966,3215.8,3214.8,2.60468295]
[1736938459942,7.50518724,3214.9,3214.8,2.60468295]
[1736938460147,8.26118724,3214.9,3214.8,2.60468295]
[1736938460310,6.11051,3214.9,3214.8,2.60468295]
[1736938460645,6.11051,3214.9,3214.6,0.175]
[1736938460954,6.11051,3214.9,3214.5,2.60468295]
[1736938461245,6.11051,3214.9,3214.6,0.175]
[1736938463341,7.50518724,3214.9,3214.6,0.175]
[1736938468241,3.11071,3214.7,3214.6,0.175]
[1736938468418,5.15067724,3214.7,3214.1,0.7827]
[1736938468618,4.50557724,3214.5,3214.2,0.175]
[1736938469567,1.39467724,3214.5,3214.1,0.7827]
[1736938469719,3.1111,3214.3,3214.2,0.175]
[1736938470175,3.1111,3214.3,3213.9,0.7827]
[1736938470449,3.0,3214.2,3214.1,0.175]
[1736938470626,3.0,3214.2,3213.9,0.7827]
[1736938470627,3.86721,3214.2,3214.0,0.175]
[1736938471014,1.39467724,3214.1,3213.6,0.7827]
[1736938471154,3.11152,3213.9,3213.7,0.175]
[1736938471617,3.0,3213.8,3213.7,0.175]
[1736938472734,3.756,3213.8,3213.7,0.175]
[1736938473427,3.0,3213.8,3213.7,0.175]
[1736938474038,6.11158,3213.8,3213.7,0.175]
[1736938474662,3.0,3213.8,3213.7,0.175]
[1736938476170,3.0,3214.0,3213.7,0.175]
[1736938478940,3.11148,3213.9,3213.7,0.175]
[1736938479365,6.11158,3213.8,3213.7,0.175]
[1736938480569,3.11178,3213.6,3213.4,3.34304773]
[1736938480745,1.39467724,3213.6,3213.4,3.34304773]
[1736938480948,1.39467724,3213.6,3213.1,0.005]
[1736938481266,1.39467724,3213.6,3213.2,0.175]
[1736938481635,3.11187,3213.5,3213.2,0.175]
[1736938483339,3.0,3213.4,3213.2,0.175]
[1736938484560,3.0,3213.4,3213.1,0.005]
[1736938484765,3.0,3213.4,3213.1,0.18]
[1736938485184,3.11206,3213.3,3213.1,0.005]
[1736938485504,3.11206,3213.3,3213.1,0.18]
[1736938487293,0.8133,3213.4,3213.1,0.18]
[1736938487496,3.8133,3213.4,3213.1,0.18]
[1736938488507,6.92528,3213.4,3213.1,0.18]
[1736938488825,3.8133,3213.4,3213.1,0.18]
[1736938489050,3.11211,3213.3,3213.1,0.18]
[1736938490130,3.11216,3213.2,3213.1,0.18]
[1736938490513,6.11216,3213.2,3213.1,0.18]
[1736938496751,3.0,3213.2,3213.1,0.18]
[1736938501334,6.11216,3213.2,3213.1,0.18]
[1736938502489,3.0,3213.2,3213.1,0.18]
[1736938502784,3.0,3213.7,3213.1,0.975]
[1736938503296,3.0,3213.8,3213.1,0.975]
[1736938503457,5.30898724,3214.2,3213.3,3.9215]
[1736938504079,3.11138,3214.1,3213.3,0.8095]
[1736938504275,3.0,3213.9,3213.3,0.8095]
[1736938504464,3.0,3213.9,3213.3,0.84061553]
[1736938511679,1.39467724,3214.4,3213.5,0.8095]
[1736938511881,4.50571724,3214.4,3213.7,0.8095]
[1736938512059,3.0,3214.3,3213.7,0.8095]
[1736938513117,3.11076,3214.7,3213.8,0.84061384]
[1736938513118,9.82549724,3214.6,3213.8,0.84061384]
[1736938513424,4.50549724,3214.6,3213.9,0.8095]
[1736938513718,0.82611872,3214.9,3214.1,0.8095]
[1736938513719,4.50529724,3214.8,3214.1,0.8095]
[1736938513913,3.0,3214.7,3214.1,0.8095]
[1736938514619,3.0,3214.7,3214.1,0.84060951]
[1736938515336,3.0,3214.7,3214.1,0.8095]
[1736938515705,2.99625665,3214.7,3214.1,0.8095]
[1736938517034,1.39467724,3214.6,3214.1,0.8095]
[1736938517202,3.91401,3214.5,3214.0,0.175]
[1736938519299,3.91401,3214.5,3214.1,0.175]
[1736938520799,1.39467724,3214.6,3214.1,0.175]
[1736938521134,1.39467724,3214.4,3214.1,0.175]
[1736938522005,0.7754,3214.3,3213.6,0.7712]
[1736938522196,4.50589724,3214.2,3213.7,0.175]
[1736938522697,1.39467724,3214.2,3213.7,0.175]
[1736938523034,1.39467724,3214.2,3213.6,0.7712]
[1736938523230,1.39467724,3214.2,3213.8,0.175]
[1736938523834,4.50586724,3214.2,3213.8,0.175]
[1736938524036,1.39467724,3214.2,3213.8,0.175]
[1736938524334,3.0,3214.0,3213.8,0.175]
[1736938525526,3.0,3214.0,3213.6,0.7712]
[1736938525830,3.0,3214.0,3213.7,0.175]
[1736938526148,1.39467724,3214.2,3213.7,0.175]
[1736938528415,4.39467724,3214.2,3213.7,0.175]
[1736938528710,4.39467724,3214.4,3213.8,0.7712]
[1736938531019,4.39467724,3214.4,3213.8,0.76950205]
[1736938532247,3.0,3214.3,3213.8,0.76950205]
[1736938532456,5.28127724,3214.2,3213.7,0.175]
[1736938532752,3.11136,3214.1,3213.7,0.175]
[1736938532903,3.0,3214.0,3213.7,0.175]
[1736938533104,3.11136,3214.1,3213.2,6.33803718]
[1736938533330,3.11136,3214.1,3213.3,0.175]
[1736938533938,0.55,3214.1,3213.3,0.175]
[1736938534141,3.11149,3213.9,3213.4,0.816]
[1736938538046,4.50631724,3213.8,3213.4,0.816]
[1736938538717,3.11178,3213.6,3213.4,0.175]
[1736938540358,0.7548,3213.7,3213.4,0.175]
[1736938540559,0.7548,3213.7,3213.3,0.175]
[1736938540705,4.50630724,3213.8,3213.3,0.175]
[1736938545853,4.50630724,3213.8,3213.1,0.821]
[1736938546160,4.50630724,3213.8,3213.2,0.175]
[1736938547290,1.39467724,3213.4,3213.1,0.821]
[1736938547444,2.14947724,3213.4,3213.2,0.175]
[1736938548091,5.26146724,3213.4,3213.2,0.175]
[1736938548476,3.11206,3213.3,3213.2,0.175]
[1736938554488,5.14947724,3213.4,3213.2,0.175]
[1736938556559,5.97561796,3213.4,3213.2,0.175]
[1736938561360,5.14947724,3213.4,3213.2,0.175]
[1736938561699,4.39467724,3213.4,3213.2,0.175]
[1736938561903,3.0,3213.4,3213.2,0.175]
[1736938562205,3.0,3213.4,3213.2,0.9468]
[1736938562959,4.39467724,3213.6,3213.2,0.9468]
[1736938565192,3.0,3213.6,3213.2,0.9468]
[1736938565508,5.32,3213.9,3213.3,3.11205]
[1736938565712,5.32,3213.9,3213.4,0.8166]
[1736938570987,3.11141,3214.0,3213.4,0.8166]
[1736938572612,3.11141,3214.0,3213.5,0.175]
[1736938573002,3.11169,3213.7,3213.5,0.175]
[1736938573206,3.11189,3213.5,3213.1,0.005]
[1736938573416,4.50673724,3213.3,3213.2,0.175]
[1736938573629,6.11216,3213.2,3213.1,0.005]
[1736938581033,7.43366,3213.2,3213.1,0.005]
[1736938581204,8.31649372,3213.2,3213.1,0.005]
[1736938581612,9.71117096,3213.2,3213.1,0.005]
[1736938582007,15.03117096,3213.2,3213.1,0.005]
[1736938583299,16.59048901,3213.2,3213.1,0.005]
[1736938583503,0.7715,3212.9,3212.0,0.175]
[1736938583697,3.11323,3212.1,3211.9,0.175]
[1736938583902,3.88461,3212.3,3211.9,0.175]
[1736938584141,3.11316,3212.2,3211.9,0.175]
[1736938587357,3.11316,3212.2,3211.8,0.175]
[1736938587670,3.11316,3212.2,3211.6,0.8166]
[1736938587883,3.11316,3212.2,3211.7,0.175]
[1736938588203,6.06694529,3212.4,3211.7,0.175]
[1736938590309,6.06694529,3212.4,3211.8,0.0075]
[1736938590514,6.75078982,3212.4,3211.8,0.0075]
[1736938591552,3.79679453,3212.4,3211.8,0.0075]
[1736938594915,3.79679453,3212.4,3211.9,0.8025]
[1736938595927,6.06666529,3212.7,3212.0,0.0075]
[1736938595928,6.11279,3212.6,3212.0,0.0075]
[1736938597021,0.55,3212.5,3212.0,0.0075]
[1736938598228,0.55,3212.5,3211.8,0.81]
[1736938598430,0.55,3212.5,3212.2,0.0075]
[1736938598633,1.51167853,3212.5,3212.2,0.0075]
[1736938600737,1.51167853,3212.5,3212.1,0.8025]
[1736938604003,10.2078787,3212.8,3212.1,0.8025]
[1736938604199,6.7181587,3212.8,3212.1,3.14431938]
[1736938604406,1.3981587,3212.8,3212.2,0.8025]
[1736938613515,1.3981587,3212.8,3212.3,0.175]
[1736938614719,4.5107287,3212.8,3212.3,0.175]
[1736938614921,4.5110087,3212.5,3212.3,0.175]
[1736938615121,4.5110087,3212.5,3211.6,0.7971]
[1736938615387,3.11315,3212.2,3211.7,0.175]
[1736938616079,3.11315,3212.2,3211.8,0.175]
[1736938617180,1.3981587,3212.3,3211.8,0.175]
[1736938618466,3.11361,3211.7,3211.4,0.7971]
[1736938618668,1.3981587,3211.5,3211.4,0.7971]
[1736938618872,1.3981587,3211.5,3211.3,2.60468295]
[1736938619168,1.3981587,3211.5,3211.2,0.7971]
[1736938621471,3.11378,3211.6,3211.2,0.7971]
[1736938621997,3.0,3211.5,3211.2,0.7971]
[1736938624161,3.0,3211.7,3211.2,0.7971]
[1736938624500,5.95535355,3211.9,3211.2,0.7971]
[1736938624501,3.0,3211.9,3211.2,0.7971]
[1736938624684,3.0,3211.9,3211.2,0.8282369]
[1736938624889,3.0,3211.9,3211.2,0.7971]
[1736938628808,3.0,3211.9,3211.4,0.7545]
[1736938629312,3.11324,3212.1,3211.4,0.7545]
[1736938629472,3.83599363,3212.1,3211.4,0.7545]
[1736938631315,6.11332,3212.0,3211.4,0.7545]
[1736938631490,3.11343,3211.9,3211.4,0.7545]
[1736938632084,3.72275363,3212.1,3211.4,0.7545]
[1736938632434,3.11354,3211.8,3211.4,0.7545]
[1736938632724,0.311354,3211.7,3211.4,0.7545]
[1736938633618,3.11354,3211.8,3211.4,0.7545]
[1736938634521,3.11354,3211.8,3211.4,0.9295]
[1736938636235,0.55,3212.0,3211.4,0.9295]
[1736938636730,3.0,3211.8,3211.4,0.9295]
[1736938641670,6.11353,3211.8,3211.4,0.175]
[1736938641957,0.611353,3211.7,3211.2,0.7545]
[1736938642169,0.611353,3211.7,3211.3,0.175]
[1736938642323,3.11378,3211.6,3211.2,0.9295]
[1736938643579,4.51274117,3211.6,3211.2,0.9295]
[1736938646348,3.11388,3211.5,3211.2,0.9295]
[1736938647768,1.39896117,3211.6,3211.2,0.9295]
[1736938651474,1.39896117,3211.3,3210.7,0.7545]
[1736938651726,1.39896117,3211.3,3210.9,0.175]
[1736938655379,1.39896117,3211.1,3211.0,0.175]
[1736938657802,4.39896117,3211.1,3211.0,0.175]
[1736938657978,5.15026729,3211.1,3211.0,0.175]
[1736938658379,3.0,3211.2,3211.0,0.175]
[1736938659401,1.39896117,3211.1,3210.5,0.7901]
[1736938659605,4.51317117,3211.1,3210.6,0.175]
[1736938660375,0.7807,3211.0,3210.6,0.175]
[1736938661074,3.11386,3211.5,3210.7,0.7901]
[1736938661274,9.83262117,3211.7,3210.8,3.11446]
[1736938661469,9.83262117,3211.7,3210.9,0.7901]
[1736938661706,3.0,3211.6,3211.1,0.7901]
[1736938662407,1.39896117,3211.3,3210.8,0.7901]
[1736938664009,1.39896117,3211.5,3210.8,0.7901]
[1736938664174,1.39896117,3211.5,3210.9,0.7901]
[1736938664680,3.0,3211.6,3210.9,0.7901]
[1736938664909,3.0,3211.6,3210.9,3.11435]
[1736938665223,3.0,3211.6,3211.0,0.7901]
[1736938666611,3.0,3211.6,3210.9,0.03113964]
[1736938666612,3.0,3211.8,3211.2,0.7901]
[1736938668412,6.11352,3211.8,3211.2,0.7901]
[1736938670215,6.11352,3211.8,3211.3,0.175]
[1736938674302,3.11334,3212.0,3211.4,0.7737]
[1736938674508,3.11334,3212.0,3211.4,0.80483895]
[1736938674837,3.11319,3212.2,3211.4,0.80483895]
[1736938675039,5.32,3212.8,3211.5,0.7737]
[1736938675040,3.11298,3212.4,3211.5,0.7737]
[1736938675230,3.11298,3212.4,3211.7,0.7737]
[1736938675231,3.0,3212.3,3211.7,0.7737]
[1736938676445,3.71925057,3212.6,3211.8,0.03113274]
[1736938676446,3.11283,3212.6,3211.8,0.03113274]
[1736938676641,3.11283,3212.6,3211.9,0.7737]
[1736938676832,3.0,3212.5,3211.9,0.7737]
[1736938677744,3.0,3212.7,3211.9,0.7737]
[1736938678723,6.11273,3212.7,3211.9,0.7737]
[1736938679440,6.11273,3212.7,3211.9,0.80483032]
[1736938680043,6.11273,3212.7,3211.9,0.7737]
[1736938680612,3.0,3212.8,3212.0,0.80483031]
[1736938681148,6.11258,3212.8,3212.0,0.80483031]
[1736938681318,6.11258,3212.8,3212.0,0.7737]
[1736938681643,3.11267,3212.7,3212.0,0.7737]
[1736938684575,3.0,3212.8,3212.0,0.7737]
[1736938684738,3.0,3212.8,3212.0,0.80482918]
[1736938685885,0.764,3213.0,3212.1,0.7694]
[1736938686082,2.95525057,3213.2,3212.3,0.7694]
[1736938686083,3.11233,3213.1,3212.3,0.7694]
[1736938686436,3.0,3213.0,3212.3,0.7694]
[1736938686780,6.89869057,3213.2,3212.4,0.03112769]
[1736938686981,6.89869057,3213.2,3212.5,0.7694]
[1736938687282,3.11238,3213.0,3212.5,0.7694]
[1736938688138,3.0,3213.1,3212.5,0.7694]
[1736938688338,3.11246,3212.9,3212.5,0.7694]
[1736938688964,6.11231,3213.1,3212.5,0.7694]
[1736938689746,3.11237,3213.0,3212.5,0.7694]
[1736938691804,3.0,3213.1,3212.5,0.7694]
[1736938691994,3.11245,3212.9,3212.5,0.7694]
[1736938694713,6.11232,3213.1,3212.5,0.7694]
[1736938694919,3.11235,3213.0,3212.5,0.7694]
[1736938695466,4.5101139,3213.0,3212.5,0.7694]
[1736938697269,3.0,3212.9,3212.5,0.7694]
[1736938702906,4.3977639,3213.0,3212.5,0.7694]
[1736938703314,1.3977639,3213.0,3212.5,0.7694]
[1736938703612,4.5101239,3213.0,3212.5,0.7694]
[1736938704525,3.0,3213.1,3212.5,0.7694]
[1736938704688,3.0,3213.1,3212.5,0.8166]
[1736938705011,3.0,3213.1,3212.5,0.84772283]
[1736938708925,4.5098739,3213.3,3212.5,0.84772283]
[1736938709481,3.0,3213.2,3212.5,0.84772283]
[1736938710221,1.3977639,3213.3,3212.5,3.96048283]
[1736938710522,1.3977639,3213.3,3212.6,0.8166]
[1736938710687,1.3977639,3213.3,3212.8,0.8166]
[1736938711022,4.5098539,3213.3,3212.8,0.8166]
[1736938716012,1.3977639,3213.3,3212.8,0.8166]
[1736938716743,4.5096939,3213.5,3212.8,0.8166]
[1736938717928,3.11171,3213.7,3212.8,0.8166]
[1736938718132,1.3977639,3213.8,3213.1,0.8166]
[1736938718441,4.3977639,3213.8,3213.2,0.175]
[1736938718601,4.3977639,3213.8,3213.3,0.8166]
[1736938719039,0.7588,3214.1,3213.3,0.8166]
[1736938719214,1.3977639,3213.9,3213.3,0.8166]
[1736938719543,1.3977639,3213.9,3213.3,0.84771789]
[1736938719747,1.3977639,3213.9,3213.4,0.8166]
[1736938720201,1.3977639,3213.9,3213.5,0.03111627]
[1736938720402,4.3977639,3214.1,3213.6,0.8166]
[1736938722108,1.3977639,3213.9,3213.6,0.8166]
[1736938722337,1.3977639,3213.9,3213.7,0.175]
[1736938727235,6.11131,3214.1,3213.7,0.175]
[1736938727236,7.5090739,3214.1,3213.7,0.175]
[1736938729035,8.43096,3214.5,3213.8,0.8166]
[1736938729240,1.3977639,3214.3,3213.8,0.8166]
[1736938733251,1.3977639,3214.1,3213.8,0.8166]
[1736938740647,1.3977639,3214.1,3213.9,0.175]
[1736938741655,1.3977639,3214.3,3213.9,0.175]
[1736938742966,4.5088739,3214.3,3213.9,0.175]
[1736938745988,1.3977639,3214.3,3213.9,0.175]
[1736938746339,5.2775739,3214.3,3213.9,0.175]
[1736938746837,3.11111,3214.3,3213.9,0.175]
[1736938747232,1.3977639,3214.2,3213.9,0.175]
[1736938747893,4.5089539,3214.2,3213.9,0.175]
[1736938748038,1.3977639,3214.4,3213.9,0.175]
[1736938748239,4.5087839,3214.4,3213.9,0.175]
[1736938751442,1.3977639,3214.4,3213.9,0.175]
[1736938751692,3.0,3214.6,3214.0,0.8019]
[1736938751838,4.3977639,3214.6,3214.0,0.8019]
[1736938753186,4.3977639,3214.6,3214.2,0.8019]
[1736938753777,1.3977639,3214.6,3214.2,0.8019]
[1736938755173,1.3977639,3214.8,3214.2,0.8019]
[1736938756268,1.3977639,3214.8,3214.1,3.14237908]
[1736938756269,0.25,3214.6,3213.8,1.3977639]
[1736938756475,0.25,3214.6,3213.9,0.20610787]
[1736938756670,0.25,3214.6,3214.0,3.11135]
[1736938756871,0.25,3213.9,3213.5,0.175]
[1736938757123,1.6477639,3213.9,3213.5,0.175]
[1736938757732,0.25,3213.9,3213.5,0.175]
[1736938758234,0.25,3213.9,3213.6,0.175]
[1736938759185,0.25,3213.9,3213.6,0.1897]
[1736938767236,0.25,3213.9,3213.6,0.175]
[1736938767423,0.25,3213.9,3213.7,0.175]
[1736938770648,0.25,3214.0,3213.7,0.33935274]
[1736938770952,0.25,3214.2,3213.7,0.175]
[1736938773123,0.25,3214.0,3213.7,0.175]
[1736938773426,0.25,3213.8,3213.7,0.175]
[1736938784379,1.0461,3214.0,3213.7,0.175]
[1736938784725,0.25,3214.0,3213.7,0.175]
[1736938798488,0.25,3214.0,3213.8,0.174]
[1736938800278,0.25,3213.8,3213.2,3.26554182]
[1736938800484,0.25,3213.8,3213.3,0.174]
[1736938800887,0.25,3213.8,3213.4,0.03111636]
[1736938801657,3.25,3214.2,3213.4,3.14305636]
[1736938802162,0.25,3214.4,3213.8,3.11151]
[1736938802386,0.25,3214.4,3213.9,0.03111118]
[1736938802997,0.24625421,3214.4,3213.9,0.03111118]
[1736938803472,0.24625421,3214.4,3213.8,3.11151]
[1736938803674,0.24625421,3214.4,3213.9,3.11147]
[1736938804504,0.24625421,3214.4,3213.8,3.26554182]
[1736938804806,0.24625421,3214.4,3213.8,3.11155]
[1736938805801,0.24625421,3214.4,3213.9,0.03111085]
[1736938807590,0.24625421,3214.4,3214.0,0.174]
[1736938807793,0.7504,3214.3,3214.0,0.174]
[1736938808312,0.24625421,3214.4,3214.0,0.174]
[1736938811810,0.99665421,3214.6,3214.0,0.20511011]
[1736938812216,0.24625421,3214.5,3214.0,0.20511011]
[1736938812703,0.24625421,3214.5,3214.0,0.174]
[1736938813238,1.64401811,3214.5,3214.0,0.174]
[1736938814941,0.24625421,3214.5,3214.0,0.174]
[1736938815106,0.7504,3214.6,3214.0,0.174]
[1736938815611,0.24625421,3214.7,3214.0,0.174]
[1736938816043,0.24625421,3214.7,3214.0,0.20510766]
[1736938817246,0.24625421,3214.7,3214.0,0.174]
[1736938818238,0.7504,3214.6,3214.0,0.174]
[1736938819159,0.7504,3214.6,3214.1,0.174]
[1736938824847,0.55,3214.3,3214.1,0.174]
[1736938825183,0.55,3214.3,3214.2,0.174]
[1736938825583,0.24625421,3214.1,3213.7,5.38]
[1736938825755,1.3567,3213.8,3213.3,3.26007115]
[1736938825956,1.3567,3213.8,3213.7,0.174]
[1736938826660,0.55,3213.8,3213.7,0.174]
[1736938826861,0.24625421,3213.9,3213.7,0.174]
[1736938827071,0.8067,3214.3,3213.7,0.174]
[1736938827388,0.55,3214.2,3213.7,0.174]
[1736938827583,0.24625421,3214.4,3213.7,0.174]
[1736938827790,0.24625421,3214.4,3213.8,0.0311103]
[1736938828164,5.32,3214.5,3213.8,0.0311103]
[1736938830095,5.32,3214.5,3214.0,0.60773411]
[1736938830389,0.24625421,3214.6,3214.0,0.60773411]
[1736938830581,0.24625421,3214.6,3214.1,0.03110748]
[1736938833196,0.24625421,3214.6,3214.0,0.60773411]
[1736938833883,0.24625421,3214.6,3214.1,0.03110752]
[1736938834998,0.24625421,3214.6,3214.0,0.60773411]
[1736938835375,0.24625421,3214.6,3214.1,0.03110753]
[1736938835565,0.24625421,3214.6,3214.0,0.60773411]
[1736938836108,0.24625421,3214.6,3214.1,0.03110753]
[1736938839600,0.24625421,3214.6,3214.1,0.03110756]
[1736938841817,0.24625421,3214.6,3214.0,0.60773411]
[1736938841984,0.24625421,3214.6,3214.0,0.6388417]
[1736938842382,0.24625421,3214.6,3214.0,0.63884171]
[1736938843424,0.24625421,3214.6,3214.0,0.60773411]
[1736938844107,0.79625421,3214.1,3213.7,3.26007115]
[1736938844310,0.55,3213.8,3213.7,3.26007115]
[1736938844490,0.24625421,3213.7,3213.6,3.26007115]
[1736938845089,0.24625421,3213.7,3213.5,0.174]
[1736938851277,0.79625421,3213.4,3213.3,0.174]
[1736938852267,0.79625421,3213.4,3212.7,3.26007115]
[1736938852268,0.24625421,3213.1,3212.8,0.03111991]
[1736938852449,0.24625421,3213.4,3213.1,0.174]
[1736938856361,0.55,3213.5,3213.1,0.174]
[1736938856558,0.24625421,3213.6,3213.1,0.174]
[1736938856887,0.24625421,3213.7,3213.2,0.03112078]
[1736938857181,3.24625421,3213.9,3213.2,0.03112078]
[1736938858186,0.24625421,3213.9,3213.2,0.03112078]
[1736938859671,0.24625421,3213.9,3213.1,0.174]
[1736938859888,0.55,3213.4,3212.9,8.64007115]
[1736938860071,0.24625421,3213.3,3213.0,0.174]
[1736938861487,0.79625421,3213.1,3213.0,0.174]
[1736938862348,0.8293,3212.9,3212.2,3.26007115]
[1736938862579,0.24625421,3212.8,3212.3,0.174]
[1736938863378,0.55,3212.7,3212.3,0.174]
[1736938863773,0.55,3212.7,3211.9,8.64007115]
[1736938863965,0.55,3212.7,3212.0,0.174]
[1736938864167,0.55,3212.7,3212.1,0.62847985]
[1736938864569,0.55,3212.7,3211.9,5.38]
[1736938864570,0.24625421,3212.4,3211.9,5.38]
[1736938864798,1.03025421,3212.4,3212.0,0.174]
[1736938865404,1.03025421,3212.4,3211.6,0.63296899]
[1736938865559,1.03025421,3212.4,3211.7,0.174]
[1736938865895,0.24625421,3212.1,3211.7,0.174]
[1736938867499,0.24625421,3212.3,3211.8,0.03113188]
[1736938867661,0.24625421,3212.5,3211.8,0.03113188]
[1736938869917,0.24625421,3212.5,3211.7,0.174]
[1736938870894,0.24625421,3212.5,3211.8,0.174]
[1736938871556,0.24625421,3212.3,3211.9,0.174]
[1736938871759,0.784,3212.2,3211.9,0.174]
[1736938876124,0.24625421,3212.1,3211.9,0.174]
[1736938877304,0.55,3212.0,3211.9,0.174]
[1736938883313,0.55,3212.0,3211.4,2.85676782]
[1736938883494,0.55,3212.0,3211.9,0.174]
[1736938884306,1.334,3212.0,3211.9,0.174]
[1736938885723,1.334,3212.0,3211.4,2.85676782]
[1736938885916,1.334,3212.0,3211.8,0.174]
[1736938886123,0.79625421,3211.9,3211.8,0.174]
[1736938886616,0.98550872,3211.9,3211.8,0.174]
[1736938887285,0.98550872,3211.9,3211.4,2.85676782]
[1736938887286,0.79625421,3211.5,3211.4,2.243]
[1736938887482,0.79625421,3211.5,3210.6,3.0]
[1736938887483,0.7701,3211.4,3210.6,3.0]
[1736938887719,0.7701,3211.4,3210.7,0.174]
[1736938888230,0.24625421,3211.1,3210.6,3.0]
[1736938888395,0.24625421,3211.1,3210.7,0.174]
[1736938888580,0.55,3211.0,3210.9,0.62466279]
[1736938888786,0.55,3211.0,3210.8,0.174]
[1736938889322,0.55,3211.0,3210.9,0.174]
[1736938891521,1.3201,3211.0,3210.9,0.174]
[1736938894291,1.47673542,3211.0,3210.9,0.174]
[1736938894791,1.47673542,3211.0,3210.4,0.14554798]
[1736938894792,0.7758,3210.6,3210.4,0.14554798]
[1736938895012,0.7758,3210.6,3210.5,0.174]
[1736938895217,0.55,3210.5,3210.4,0.14554798]
[1736938895700,0.55,3210.5,3210.4,0.31954798]
[1736938895914,0.79625421,3210.5,3210.4,0.14554798]
[1736938896094,0.79625421,3210.5,3210.4,0.31954798]
[1736938897987,0.79625421,3210.5,3210.4,0.14554798]
[1736938898329,0.24625421,3210.5,3210.4,0.31954798]
[1736938899619,1.57205421,3210.5,3210.4,0.14554798]
[1736938899930,1.73238254,3210.5,3210.4,0.31954798]
[1736938900827,1.73238254,3210.5,3210.4,0.14554798]
[1736938901135,1.57205421,3210.5,3210.4,0.14554798]